[Event "Late-Titled-Tuesday-Blitz-May-28-2024"]
[Site "Chess.com"]
[Date "2024.05.28"]
[Round "1"]
[White "Abund"]
[Black "MaiqMaster"]
[Result "1-0"]
[WhiteElo "2810"]
[BlackElo "2456"]
[TimeControl "180+1"]
[EndTime "14:07:32 PDT"]
[Termination "Abund won by checkmate"]

1. e4 {[%clk 0:03:00.9]} 1... c5 {[%clk 0:02:59.3]} 2. Nf3 {[%clk 0:03:00.7]}
2... e6 {[%clk 0:02:59.3]} 3. c3 {[%clk 0:03:00.3]} 3... Nf6 {[%clk 0:02:57.4]}
4. e5 {[%clk 0:03:00.3]} 4... Nd5 {[%clk 0:02:57.3]} 5. g3 {[%clk 0:03:00.9]}
5... d6 {[%clk 0:02:57.2]} 6. exd6 {[%clk 0:03:01.8]} 6... Bxd6 {[%clk
0:02:57.7]} 7. Bg2 {[%clk 0:03:02.6]} 7... O-O {[%clk 0:02:55.7]} 8. O-O {[%clk
0:03:03.1]} 8... Nc6 {[%clk 0:02:54]} 9. d4 {[%clk 0:03:03.1]} 9... cxd4 {[%clk
0:02:44.8]} 10. Nxd4 {[%clk 0:03:04]} 10... Nxd4 {[%clk 0:02:44.5]} 11. Qxd4
{[%clk 0:03:04.9]} 11... Qc7 {[%clk 0:02:45.1]} 12. c4 {[%clk 0:03:04.9]} 12...
Nf6 {[%clk 0:01:59.8]} 13. Nc3 {[%clk 0:02:47.6]} 13... Bd7 {[%clk 0:01:58.5]}
14. Nb5 {[%clk 0:02:36.7]} 14... Bxb5 {[%clk 0:01:57.2]} 15. cxb5 {[%clk
0:02:37.6]} 15... Rfd8 {[%clk 0:01:48.8]} 16. Qe3 {[%clk 0:02:12.9]} 16... Rac8
{[%clk 0:01:43.4]} 17. Qxa7 {[%clk 0:02:07.2]} 17... Bc5 {[%clk 0:01:32.6]} 18.
Qxb7 {[%clk 0:01:32.7]} 18... Bxf2+ {[%clk 0:01:16.9]} 19. Rxf2 {[%clk
0:00:45.9]} 19... Rd1+ {[%clk 0:01:13.8]} 20. Rf1 {[%clk 0:00:45.7]} 20... Qc5+
{[%clk 0:01:12.2]} 21. Kh1 {[%clk 0:00:44.6]} 21... Ng4 {[%clk 0:01:03.6]} 22.
Be3 {[%clk 0:00:22.8]} 22... Rxf1+ {[%clk 0:01:02.9]} 23. Rxf1 {[%clk
0:00:21.9]} 23... Nxe3 {[%clk 0:01:02.9]} 24. Qxf7+ {[%clk 0:00:20.7]} 24... Kh8
{[%clk 0:01:01.9]} 25. Qf2 {[%clk 0:00:20.5]} 25... Nxf1 {[%clk 0:00:50.5]} 26.
Qxc5 {[%clk 0:00:14.9]} 26... Rxc5 {[%clk 0:00:51.4]} 27. Bxf1 {[%clk
0:00:13.3]} 27... Rc1 {[%clk 0:00:47.2]} 28. Kg1 {[%clk 0:00:11]} 28... Rb1
{[%clk 0:00:18.9]} 29. b3 {[%clk 0:00:09.5]} 29... e5 {[%clk 0:00:18.1]} 30. b6
{[%clk 0:00:09.5]} 30... Rd1 {[%clk 0:00:16.5]} 31. b7 {[%clk 0:00:07.9]} 31...
Rd8 {[%clk 0:00:17.1]} 32. a4 {[%clk 0:00:04.9]} 32... Rb8 {[%clk 0:00:17.7]}
33. Bg2 {[%clk 0:00:03.9]} 33... Kg8 {[%clk 0:00:16.2]} 34. a5 {[%clk 0:00:04]}
34... Kf8 {[%clk 0:00:15.2]} 35. a6 {[%clk 0:00:04.5]} 35... Rd8 {[%clk
0:00:15.9]} 36. a7 {[%clk 0:00:04.8]} 36... Rd1+ {[%clk 0:00:16.6]} 37. Bf1
{[%clk 0:00:05.4]} 37... Kf7 {[%clk 0:00:16.6]} 38. b8=Q {[%clk 0:00:06.3]}
38... Rd7 {[%clk 0:00:16.1]} 39. a8=Q {[%clk 0:00:07.2]} 39... Re7 {[%clk
0:00:16.4]} 40. Qg8+ {[%clk 0:00:07.1]} 40... Kf6 {[%clk 0:00:16.8]} 41. Qf3+
{[%clk 0:00:07.3]} 41... Kg6 {[%clk 0:00:17.2]} 42. Qg4+ {[%clk 0:00:07.3]}
42... Kh6 {[%clk 0:00:17.6]} 43. Qh4+ {[%clk 0:00:07.3]} 43... Kg6 {[%clk
0:00:17.7]} 44. Qxe7 {[%clk 0:00:07.4]} 44... h5 {[%clk 0:00:18.6]} 45. Qge6+
{[%clk 0:00:07.7]} 45... Kh7 {[%clk 0:00:18.7]} 46. Bd3+ {[%clk 0:00:08.2]}
46... e4 {[%clk 0:00:18.6]} 47. Bxe4+ {[%clk 0:00:08.5]} 47... Kh8 {[%clk
0:00:19.3]} 48. Qf8# {[%clk 0:00:08.8]} 1-0

[Event "Late-Titled-Tuesday-Blitz-May-28-2024"]
[Site "Chess.com"]
[Date "2024.05.28"]
[Round "1"]
[White "NCchamp"]
[Black "ncofre98"]
[Result "1-0"]
[WhiteElo "2359"]
[BlackElo "2610"]
[TimeControl "180+1"]
[EndTime "14:07:34 PDT"]
[Termination "NCchamp won on time"]

1. d4 {[%clk 0:02:59.4]} 1... Nf6 {[%clk 0:02:50.6]} 2. Bg5 {[%clk 0:02:57.9]}
2... e6 {[%clk 0:02:47.3]} 3. e4 {[%clk 0:02:57.3]} 3... h6 {[%clk 0:02:46.9]}
4. Bxf6 {[%clk 0:02:54.7]} 4... Qxf6 {[%clk 0:02:47.8]} 5. c3 {[%clk 0:02:51.5]}
5... d6 {[%clk 0:02:47]} 6. Bd3 {[%clk 0:02:48]} 6... Nd7 {[%clk 0:02:45.8]} 7.
Nd2 {[%clk 0:02:46.2]} 7... b6 {[%clk 0:02:44.2]} 8. Ne2 {[%clk 0:02:44]} 8...
Bb7 {[%clk 0:02:44.5]} 9. O-O {[%clk 0:02:43.2]} 9... a6 {[%clk 0:02:34.2]} 10.
f4 {[%clk 0:02:31.6]} 10... Qe7 {[%clk 0:02:34.5]} 11. Nf3 {[%clk 0:02:22.3]}
11... g6 {[%clk 0:02:20.1]} 12. e5 {[%clk 0:02:04.4]} 12... Bxf3 {[%clk
0:01:49.1]} 13. Rxf3 {[%clk 0:02:03.7]} 13... d5 {[%clk 0:01:49]} 14. a4 {[%clk
0:02:01.9]} 14... c5 {[%clk 0:01:45.3]} 15. Qe1 {[%clk 0:02:01]} 15... Qd8
{[%clk 0:01:42]} 16. Qf2 {[%clk 0:01:57.4]} 16... c4 {[%clk 0:01:41.2]} 17. Bc2
{[%clk 0:01:57.4]} 17... h5 {[%clk 0:01:37.5]} 18. h3 {[%clk 0:01:55.7]} 18...
h4 {[%clk 0:01:34.4]} 19. Kh2 {[%clk 0:01:50.2]} 19... Be7 {[%clk 0:01:33.5]}
20. Qf1 {[%clk 0:01:49.1]} 20... b5 {[%clk 0:01:30]} 21. Rf2 {[%clk 0:01:47.4]}
21... Kf8 {[%clk 0:01:27.3]} 22. Ng1 {[%clk 0:01:47.9]} 22... Kg7 {[%clk
0:01:26.5]} 23. Nf3 {[%clk 0:01:48.4]} 23... Qb6 {[%clk 0:01:15.7]} 24. Bb1
{[%clk 0:01:30.9]} 24... b4 {[%clk 0:01:07.9]} 25. Ng5 {[%clk 0:01:25.4]} 25...
a5 {[%clk 0:00:44.1]} 26. Nf3 {[%clk 0:01:14.3]} 26... Rab8 {[%clk 0:00:43.4]}
27. Ng1 {[%clk 0:01:10.3]} 27... Qc6 {[%clk 0:00:37.6]} 28. f5 {[%clk
0:01:09.3]} 28... exf5 {[%clk 0:00:35.2]} 29. Bxf5 {[%clk 0:01:10.2]} 29... gxf5
{[%clk 0:00:28.1]} 30. Rxf5 {[%clk 0:01:11.1]} 30... Qg6 {[%clk 0:00:26.5]} 31.
Ne2 {[%clk 0:01:09.3]} 31... Nf8 {[%clk 0:00:19.7]} 32. Qf3 {[%clk 0:00:51.3]}
32... Ne6 {[%clk 0:00:18.6]} 33. Rf1 {[%clk 0:00:50.4]} 33... Ng5 {[%clk
0:00:08.1]} 34. Qf4 {[%clk 0:00:44]} 34... bxc3 {[%clk 0:00:07.9]} 35. Nxc3
{[%clk 0:00:43.5]} 35... Rxb2 {[%clk 0:00:07.8]} 36. Nxd5 {[%clk 0:00:38.7]}
36... Rf8 {[%clk 0:00:03.3]} 37. Nf6 {[%clk 0:00:35.3]} 37... Nxh3 {[%clk
0:00:02.1]} 38. Qe4 {[%clk 0:00:22.2]} 38... Qg3+ {[%clk 0:00:01.3]} 39. Kh1
{[%clk 0:00:21.5]} 39... Ng5 {[%clk 0:00:01]} 40. Nh5+ {[%clk 0:00:16.9]} 40...
Kh6 {[%clk 0:00:01]} 41. Nxg3 {[%clk 0:00:17.3]} 41... Nxe4 {[%clk 0:00:01.4]}
42. Nxe4 {[%clk 0:00:18.2]} 42... c3 {[%clk 0:00:01]} 43. Nxc3 {[%clk
0:00:17.3]} 1-0

[Event "Late-Titled-Tuesday-Blitz-May-28-2024"]
[Site "Chess.com"]
[Date "2024.05.28"]
[Round "1"]
[White "ckgchess"]
[Black "Flaccidmoves"]
[Result "1-0"]
[WhiteElo "2881"]
[BlackElo "2481"]
[TimeControl "180+1"]
[EndTime "14:07:39 PDT"]
[Termination "ckgchess won by resignation"]

1. e4 {[%clk 0:03:00.9]} 1... g6 {[%clk 0:03:00.9]} 2. d4 {[%clk 0:03:01.1]}
2... Bg7 {[%clk 0:03:00.9]} 3. Nc3 {[%clk 0:03:01.7]} 3... d6 {[%clk 0:03:01.4]}
4. Be3 {[%clk 0:03:02.1]} 4... a6 {[%clk 0:03:01.7]} 5. h4 {[%clk 0:03:01.8]}
5... h5 {[%clk 0:03:01.4]} 6. Qd2 {[%clk 0:03:00.3]} 6... b5 {[%clk 0:03:00.6]}
7. O-O-O {[%clk 0:02:59.7]} 7... Bb7 {[%clk 0:03:00.5]} 8. f3 {[%clk 0:03:00.2]}
8... Nf6 {[%clk 0:02:57.9]} 9. Nh3 {[%clk 0:03:00.3]} 9... Nbd7 {[%clk
0:02:48.8]} 10. Ng5 {[%clk 0:03:00.5]} 10... Rc8 {[%clk 0:02:41.7]} 11. e5
{[%clk 0:02:46.4]} 11... b4 {[%clk 0:02:30.9]} 12. e6 {[%clk 0:02:16.1]} 12...
O-O {[%clk 0:02:14.5]} 13. Ne2 {[%clk 0:01:56.8]} 13... Nb6 {[%clk 0:01:47.4]}
14. exf7+ {[%clk 0:01:54.3]} 14... Rxf7 {[%clk 0:01:41.4]} 15. Nxf7 {[%clk
0:01:42.9]} 15... Kxf7 {[%clk 0:01:42.3]} 16. Nf4 {[%clk 0:01:41.8]} 16... Nbd5
{[%clk 0:01:37.5]} 17. Bc4 {[%clk 0:01:37.1]} 17... e6 {[%clk 0:01:34.9]} 18.
Nxd5 {[%clk 0:01:32.2]} 18... Nxd5 {[%clk 0:01:33.6]} 19. Bg5 {[%clk 0:01:31.5]}
19... Qe8 {[%clk 0:01:31.5]} 20. Rhe1 {[%clk 0:01:29.6]} 20... Qa4 {[%clk
0:01:25.7]} 21. Bb3 {[%clk 0:01:22.6]} 21... Qb5 {[%clk 0:01:25.6]} 22. Qe2
{[%clk 0:01:19.6]} 22... Re8 {[%clk 0:01:21.4]} 23. Qxb5 {[%clk 0:01:16.2]}
23... axb5 {[%clk 0:01:22.3]} 24. Rd2 {[%clk 0:01:02.2]} 24... c5 {[%clk
0:01:20.8]} 25. dxc5 {[%clk 0:00:58.4]} 25... dxc5 {[%clk 0:01:21.7]} 26. Bxd5
{[%clk 0:00:55.4]} 26... Bxd5 {[%clk 0:01:22.6]} 27. Be3 {[%clk 0:00:53.1]}
27... c4 {[%clk 0:01:14.1]} 28. Bd4 {[%clk 0:00:44.1]} 28... Bh6 {[%clk
0:01:13.5]} 29. f4 {[%clk 0:00:44.8]} 29... Ra8 {[%clk 0:01:03.5]} 30. Kb1
{[%clk 0:00:36.1]} 30... c3 {[%clk 0:01:03.2]} 31. bxc3 {[%clk 0:00:37]} 31...
bxc3 {[%clk 0:00:56.1]} 32. Bxc3 {[%clk 0:00:37.2]} 32... Bxa2+ {[%clk
0:00:54.6]} 33. Kb2 {[%clk 0:00:37.6]} 33... Bd5 {[%clk 0:00:55]} 34. Ra1 {[%clk
0:00:36.1]} 34... Rxa1 {[%clk 0:00:36.8]} 35. Kxa1 {[%clk 0:00:37]} 35... Bf8
{[%clk 0:00:36.7]} 36. Be5 {[%clk 0:00:34.1]} 36... Bc5 {[%clk 0:00:31.8]} 37.
Kb2 {[%clk 0:00:32.4]} 37... Ke8 {[%clk 0:00:30.5]} 38. g3 {[%clk 0:00:27.3]}
38... Kd7 {[%clk 0:00:30.3]} 39. Bd4 {[%clk 0:00:25.3]} 39... Bd6 {[%clk
0:00:29.8]} 40. Rd1 {[%clk 0:00:24.5]} 40... Bb8 {[%clk 0:00:24.3]} 41. Ra1
{[%clk 0:00:23]} 41... Kc8 {[%clk 0:00:24.7]} 42. Be5 {[%clk 0:00:18.8]} 42...
Bxe5+ {[%clk 0:00:22]} 43. fxe5 {[%clk 0:00:19.7]} 43... Kb7 {[%clk 0:00:22.5]}
44. Kc3 {[%clk 0:00:19.9]} 44... Kb6 {[%clk 0:00:21.2]} 45. Kd4 {[%clk
0:00:20.3]} 45... b4 {[%clk 0:00:20.2]} 46. Rf1 {[%clk 0:00:19]} 46... Ba2
{[%clk 0:00:17]} 47. Rf6 {[%clk 0:00:18.7]} 47... Bb1 {[%clk 0:00:16.8]} 48.
Rxe6+ {[%clk 0:00:17.8]} 48... Kb5 {[%clk 0:00:17]} 49. Rxg6 {[%clk 0:00:17.8]}
49... Bxc2 {[%clk 0:00:17]} 50. Rg8 {[%clk 0:00:18.6]} 50... Bf5 {[%clk
0:00:14.3]} 51. Rb8+ {[%clk 0:00:17.3]} 51... Ka4 {[%clk 0:00:14.5]} 52. Kc5
{[%clk 0:00:14.2]} 1-0

[Event "Late-Titled-Tuesday-Blitz-May-28-2024"]
[Site "Chess.com"]
[Date "2024.05.28"]
[Round "1"]
[White "Mariia89"]
[Black "DirtyKabab"]
[Result "0-1"]
[WhiteElo "2209"]
[BlackElo "2567"]
[TimeControl "180+1"]
[EndTime "14:07:40 PDT"]
[Termination "DirtyKabab won on time"]

1. d4 {[%clk 0:02:59.2]} 1... Nf6 {[%clk 0:02:53.5]} 2. Nf3 {[%clk 0:02:58.4]}
2... e6 {[%clk 0:02:52.7]} 3. Bg5 {[%clk 0:02:57.5]} 3... c5 {[%clk 0:02:51.2]}
4. e3 {[%clk 0:02:56.9]} 4... cxd4 {[%clk 0:02:49.8]} 5. exd4 {[%clk 0:02:56.3]}
5... Be7 {[%clk 0:02:49.3]} 6. Bd3 {[%clk 0:02:52.1]} 6... d6 {[%clk 0:02:47]}
7. c3 {[%clk 0:02:51.8]} 7... Nbd7 {[%clk 0:02:46.7]} 8. Nbd2 {[%clk 0:02:51.1]}
8... b6 {[%clk 0:02:46.6]} 9. O-O {[%clk 0:02:50.5]} 9... Bb7 {[%clk 0:02:46.6]}
10. Qe2 {[%clk 0:02:50.5]} 10... a6 {[%clk 0:02:46.4]} 11. Rfe1 {[%clk
0:02:50.1]} 11... O-O {[%clk 0:02:45.6]} 12. h3 {[%clk 0:02:43.3]} 12... Re8
{[%clk 0:02:43.8]} 13. Nf1 {[%clk 0:02:40.9]} 13... b5 {[%clk 0:02:42.4]} 14.
Ng3 {[%clk 0:02:35.6]} 14... Qc7 {[%clk 0:02:38.5]} 15. Rac1 {[%clk 0:02:31.8]}
15... Bf8 {[%clk 0:02:31.7]} 16. Bb1 {[%clk 0:02:30.1]} 16... Bd5 {[%clk
0:02:20.6]} 17. Qd3 {[%clk 0:02:21.5]} 17... Qb7 {[%clk 0:02:15.4]} 18. b3
{[%clk 0:01:58.9]} 18... Bxf3 {[%clk 0:02:10.3]} 19. gxf3 {[%clk 0:01:58.3]}
19... g6 {[%clk 0:02:01.5]} 20. h4 {[%clk 0:01:54.8]} 20... Bg7 {[%clk
0:01:24.6]} 21. h5 {[%clk 0:01:52.7]} 21... Qd5 {[%clk 0:01:22.9]} 22. f4 {[%clk
0:01:05.8]} 22... Nf8 {[%clk 0:01:04]} 23. c4 {[%clk 0:00:54]} 23... bxc4 {[%clk
0:01:03.8]} 24. bxc4 {[%clk 0:00:54.7]} 24... Qa5 {[%clk 0:01:02.6]} 25. hxg6
{[%clk 0:00:35.9]} 25... hxg6 {[%clk 0:00:57.3]} 26. d5 {[%clk 0:00:34.1]} 26...
exd5 {[%clk 0:00:51.4]} 27. f5 {[%clk 0:00:31.8]} 27... Rxe1+ {[%clk 0:00:50.9]}
28. Rxe1 {[%clk 0:00:30.5]} 28... Qxe1+ {[%clk 0:00:51.8]} 29. Kg2 {[%clk
0:00:30.1]} 29... Re8 {[%clk 0:00:37.7]} 30. fxg6 {[%clk 0:00:27.7]} 30... Nxg6
{[%clk 0:00:35.3]} 31. Qf3 {[%clk 0:00:25.3]} 31... Ne4 {[%clk 0:00:30.2]} 32.
Bd3 {[%clk 0:00:14.8]} 32... Nxg3 {[%clk 0:00:25.8]} 33. Qxg3 {[%clk 0:00:14.2]}
33... dxc4 {[%clk 0:00:22.6]} 34. Bxg6 {[%clk 0:00:13.9]} 34... fxg6 {[%clk
0:00:23.2]} 35. Be3 {[%clk 0:00:14.2]} 35... Qb1 {[%clk 0:00:18.8]} 36. Qxd6
{[%clk 0:00:13.8]} 36... Qe4+ {[%clk 0:00:18.6]} 37. Kg1 {[%clk 0:00:13.8]}
37... Qe6 {[%clk 0:00:17.6]} 38. Qd2 {[%clk 0:00:13.2]} 38... Be5 {[%clk
0:00:17]} 39. Qc2 {[%clk 0:00:12.6]} 39... Qf7 {[%clk 0:00:15.6]} 40. Kg2 {[%clk
0:00:12.1]} 40... Kg7 {[%clk 0:00:14.3]} 41. Qa4 {[%clk 0:00:03.5]} 41... Qe6
{[%clk 0:00:12.8]} 0-1

[Event "Late-Titled-Tuesday-Blitz-May-28-2024"]
[Site "Chess.com"]
[Date "2024.05.28"]
[Round "1"]
[White "Grebnev_A"]
[Black "jcmesafischer"]
[Result "1-0"]
[WhiteElo "2617"]
[BlackElo "2332"]
[TimeControl "180+1"]
[EndTime "14:07:41 PDT"]
[Termination "Grebnev_A won by checkmate"]

1. Nf3 {[%clk 0:03:00.9]} 1... d5 {[%clk 0:02:58.7]} 2. e3 {[%clk 0:03:01.1]}
2... Nf6 {[%clk 0:02:55.9]} 3. c4 {[%clk 0:03:01.3]} 3... e6 {[%clk 0:02:55.5]}
4. Nc3 {[%clk 0:03:01.6]} 4... c5 {[%clk 0:02:54.3]} 5. cxd5 {[%clk 0:03:01.6]}
5... exd5 {[%clk 0:02:54.8]} 6. d4 {[%clk 0:03:02.4]} 6... Nc6 {[%clk
0:02:54.3]} 7. Bb5 {[%clk 0:03:01.9]} 7... a6 {[%clk 0:02:51.5]} 8. Bxc6+ {[%clk
0:03:01.7]} 8... bxc6 {[%clk 0:02:52.4]} 9. O-O {[%clk 0:03:01.9]} 9... Bd6
{[%clk 0:02:48.3]} 10. dxc5 {[%clk 0:03:01.1]} 10... Bxc5 {[%clk 0:02:49.2]} 11.
b3 {[%clk 0:03:01.7]} 11... O-O {[%clk 0:02:47.6]} 12. Bb2 {[%clk 0:03:01.5]}
12... Qe7 {[%clk 0:02:47.1]} 13. Qc2 {[%clk 0:03:01]} 13... Bg4 {[%clk
0:02:43.2]} 14. Na4 {[%clk 0:02:59.7]} 14... Ba3 {[%clk 0:02:30.4]} 15. Bxa3
{[%clk 0:02:57.5]} 15... Qxa3 {[%clk 0:02:31.3]} 16. Ne5 {[%clk 0:02:51.6]}
16... Rac8 {[%clk 0:02:23.5]} 17. h3 {[%clk 0:02:48.9]} 17... Be6 {[%clk
0:02:20.9]} 18. Qc5 {[%clk 0:02:49.2]} 18... Qxc5 {[%clk 0:02:16.7]} 19. Nxc5
{[%clk 0:02:50.1]} 19... a5 {[%clk 0:02:13.6]} 20. Rac1 {[%clk 0:02:49.8]} 20...
Rfe8 {[%clk 0:02:03.1]} 21. Nf3 {[%clk 0:02:44.6]} 21... Ne4 {[%clk 0:01:47.6]}
22. Nd4 {[%clk 0:02:39]} 22... Nxc5 {[%clk 0:01:44]} 23. Rxc5 {[%clk 0:02:39.9]}
23... Bd7 {[%clk 0:01:44]} 24. Rfc1 {[%clk 0:02:36.4]} 24... a4 {[%clk
0:01:30.8]} 25. bxa4 {[%clk 0:02:35.1]} 25... Ra8 {[%clk 0:01:30.4]} 26. a5
{[%clk 0:02:35.4]} 26... Ra6 {[%clk 0:01:29]} 27. Kf1 {[%clk 0:02:29.9]} 27...
Rea8 {[%clk 0:01:28]} 28. Nxc6 {[%clk 0:02:27]} 28... Kf8 {[%clk 0:01:14.3]} 29.
Ne5 {[%clk 0:02:07.9]} 29... Be6 {[%clk 0:01:14.3]} 30. Nc6 {[%clk 0:02:03.8]}
30... Bd7 {[%clk 0:01:13.3]} 31. Nd4 {[%clk 0:01:41.4]} 31... Rxa5 {[%clk
0:01:09.7]} 32. Rxa5 {[%clk 0:01:42.3]} 32... Rxa5 {[%clk 0:01:09.6]} 33. Rc2
{[%clk 0:01:43.2]} 33... Ke7 {[%clk 0:01:07.5]} 34. Ke2 {[%clk 0:01:43]} 34...
Kd6 {[%clk 0:01:07.6]} 35. Kd2 {[%clk 0:01:42.1]} 35... Ra3 {[%clk 0:01:06.4]}
36. Kc1 {[%clk 0:01:42]} 36... g5 {[%clk 0:00:52.3]} 37. Kb2 {[%clk 0:01:41.4]}
37... Rd3 {[%clk 0:00:51.6]} 38. Nf3 {[%clk 0:01:28.8]} 38... h6 {[%clk
0:00:43.3]} 39. Rd2 {[%clk 0:01:28.2]} 39... Bb5 {[%clk 0:00:30.9]} 40. Rxd3
{[%clk 0:01:27.5]} 40... Bxd3 {[%clk 0:00:31.8]} 41. Nd2 {[%clk 0:01:19.8]}
41... f5 {[%clk 0:00:27.4]} 42. Kc3 {[%clk 0:01:18]} 42... Be2 {[%clk
0:00:27.2]} 43. Kd4 {[%clk 0:01:18.3]} 43... Bd1 {[%clk 0:00:24.9]} 44. g3
{[%clk 0:00:57.9]} 44... h5 {[%clk 0:00:17.8]} 45. h4 {[%clk 0:00:57.1]} 45...
gxh4 {[%clk 0:00:14.2]} 46. gxh4 {[%clk 0:00:58]} 46... Bc2 {[%clk 0:00:12.7]}
47. f4 {[%clk 0:00:58.2]} 47... Bd1 {[%clk 0:00:11.9]} 48. Nb1 {[%clk
0:00:58.1]} 48... Ba4 {[%clk 0:00:10.2]} 49. Nc3 {[%clk 0:00:59]} 49... Bc6
{[%clk 0:00:10.8]} 50. a4 {[%clk 0:00:59.2]} 50... Bd7 {[%clk 0:00:10.3]} 51.
Nb5+ {[%clk 0:00:55.8]} 51... Kc6 {[%clk 0:00:08.8]} 52. Ke5 {[%clk 0:00:56.1]}
52... Kc5 {[%clk 0:00:08.8]} 53. Nd4 {[%clk 0:00:53.5]} 53... Bxa4 {[%clk
0:00:08]} 54. Nxf5 {[%clk 0:00:51.7]} 54... Kc4 {[%clk 0:00:06.6]} 55. Ng7
{[%clk 0:00:49.8]} 55... Kd3 {[%clk 0:00:03.3]} 56. f5 {[%clk 0:00:50.1]} 56...
Kxe3 {[%clk 0:00:03.6]} 57. f6 {[%clk 0:00:50.7]} 57... d4 {[%clk 0:00:03.3]}
58. f7 {[%clk 0:00:46.4]} 58... d3 {[%clk 0:00:03.7]} 59. f8=Q {[%clk 0:00:47]}
59... d2 {[%clk 0:00:04.3]} 60. Qf4+ {[%clk 0:00:47.4]} 60... Ke2 {[%clk
0:00:04.5]} 61. Qxa4 {[%clk 0:00:47.5]} 61... d1=Q {[%clk 0:00:04.4]} 62. Qxd1+
{[%clk 0:00:48.1]} 62... Kxd1 {[%clk 0:00:05.3]} 63. Nxh5 {[%clk 0:00:48.7]}
63... Ke2 {[%clk 0:00:06.2]} 64. Nf6 {[%clk 0:00:49.6]} 64... Kf2 {[%clk
0:00:07.1]} 65. h5 {[%clk 0:00:50.5]} 65... Kg3 {[%clk 0:00:08]} 66. h6 {[%clk
0:00:51.4]} 66... Kh4 {[%clk 0:00:08.9]} 67. h7 {[%clk 0:00:52.3]} 67... Kg5
{[%clk 0:00:09.7]} 68. h8=Q {[%clk 0:00:52.6]} 68... Kg6 {[%clk 0:00:10]} 69.
Qh7+ {[%clk 0:00:51.5]} 69... Kg5 {[%clk 0:00:10]} 70. Qh5# {[%clk 0:00:52.4]}
1-0

[Event "Late-Titled-Tuesday-Blitz-May-28-2024"]
[Site "Chess.com"]
[Date "2024.05.28"]
[Round "1"]
[White "ansko1999"]
[Black "KatakuriDono"]
[Result "0-1"]
[WhiteElo "2576"]
[BlackElo "2290"]
[TimeControl "180+1"]
[EndTime "14:07:42 PDT"]
[Termination "KatakuriDono won by checkmate"]

1. Nf3 {[%clk 0:03:00.4]} 1... d5 {[%clk 0:02:56.5]} 2. d4 {[%clk 0:02:58.9]}
2... Nf6 {[%clk 0:02:56]} 3. Bg5 {[%clk 0:02:58]} 3... e6 {[%clk 0:02:53]} 4.
Nbd2 {[%clk 0:02:56.9]} 4... Be7 {[%clk 0:02:46.9]} 5. Bxf6 {[%clk 0:02:54.3]}
5... Bxf6 {[%clk 0:02:46.3]} 6. e4 {[%clk 0:02:55]} 6... dxe4 {[%clk 0:02:39.5]}
7. Nxe4 {[%clk 0:02:55.9]} 7... Be7 {[%clk 0:02:39.9]} 8. Bd3 {[%clk 0:02:51.7]}
8... Nd7 {[%clk 0:02:36.2]} 9. h4 {[%clk 0:02:47.2]} 9... Nf6 {[%clk 0:02:35.6]}
10. Neg5 {[%clk 0:02:43.7]} 10... h6 {[%clk 0:02:32.3]} 11. Nxf7 {[%clk
0:02:40.4]} 11... Kxf7 {[%clk 0:02:27]} 12. Ne5+ {[%clk 0:02:39.9]} 12... Kg8
{[%clk 0:02:17.5]} 13. Ng6 {[%clk 0:02:32.9]} 13... b6 {[%clk 0:02:07.1]} 14.
Qf3 {[%clk 0:02:19.8]} 14... Rb8 {[%clk 0:01:57.8]} 15. O-O-O {[%clk 0:02:02.6]}
15... Bb7 {[%clk 0:01:52.7]} 16. Qe2 {[%clk 0:01:54.5]} 16... Qd6 {[%clk
0:01:44.5]} 17. Rhe1 {[%clk 0:01:32.3]} 17... Kf7 {[%clk 0:01:31.3]} 18. Ne5+
{[%clk 0:01:19.5]} 18... Kg8 {[%clk 0:01:31.2]} 19. Ng6 {[%clk 0:01:19.4]} 19...
Kf7 {[%clk 0:01:31.1]} 20. Nxh8+ {[%clk 0:01:09.1]} 20... Rxh8 {[%clk
0:01:30.5]} 21. g3 {[%clk 0:01:05.8]} 21... Re8 {[%clk 0:01:26.4]} 22. Kb1
{[%clk 0:01:01]} 22... Bf8 {[%clk 0:01:25.3]} 23. f4 {[%clk 0:00:53.7]} 23...
Re7 {[%clk 0:01:17.7]} 24. Rf1 {[%clk 0:00:47.2]} 24... Kg8 {[%clk 0:01:13.2]}
25. g4 {[%clk 0:00:44.2]} 25... Nd5 {[%clk 0:01:07.8]} 26. Qd2 {[%clk
0:00:31.2]} 26... Nb4 {[%clk 0:00:58.4]} 27. Bg6 {[%clk 0:00:25.6]} 27... Rd7
{[%clk 0:00:31.3]} 28. c3 {[%clk 0:00:20.5]} 28... Nd5 {[%clk 0:00:24.7]} 29. g5
{[%clk 0:00:19.8]} 29... e5 {[%clk 0:00:17.7]} 30. f5 {[%clk 0:00:13]} 30...
exd4 {[%clk 0:00:14.4]} 31. cxd4 {[%clk 0:00:11.6]} 31... Nb4 {[%clk 0:00:12.5]}
32. a3 {[%clk 0:00:10.9]} 32... Be4+ {[%clk 0:00:12.1]} 33. Ka1 {[%clk
0:00:10.9]} 33... Nc2+ {[%clk 0:00:12.4]} 34. Ka2 {[%clk 0:00:10]} 34... Qd5+
{[%clk 0:00:12.3]} 35. b3 {[%clk 0:00:10.2]} 35... Nxd4 {[%clk 0:00:11.5]} 36.
gxh6 {[%clk 0:00:09.4]} 36... Qxb3+ {[%clk 0:00:10.4]} 37. Ka1 {[%clk
0:00:09.7]} 37... Nc2+ {[%clk 0:00:10.3]} 38. Qxc2 {[%clk 0:00:09.9]} 38... Qxc2
{[%clk 0:00:08]} 39. Rxd7 {[%clk 0:00:08.4]} 39... Qc3+ {[%clk 0:00:08]} 40. Ka2
{[%clk 0:00:08.4]} 40... Qc4+ {[%clk 0:00:08]} 41. Kb2 {[%clk 0:00:07.5]} 41...
Qxf1 {[%clk 0:00:08]} 42. h7+ {[%clk 0:00:04.6]} 42... Kh8 {[%clk 0:00:08.1]}
43. Rd8 {[%clk 0:00:03.9]} 43... Qe2+ {[%clk 0:00:08]} 44. Kc1 {[%clk
0:00:02.7]} 44... Qe3+ {[%clk 0:00:07.8]} 45. Kb2 {[%clk 0:00:02.4]} 45... Qf2+
{[%clk 0:00:07.9]} 46. Kb3 {[%clk 0:00:02.9]} 46... Qc2# {[%clk 0:00:05.5]} 0-1